bitfinex/quotes_SOLUSD_20240713
["timestamp","ask_amount","ask_price","bid_price","bid_amount"]
[1720854373017,11.6,139.2,139.15,11.6]
[1720854374526,10.0,139.22,139.15,11.6]
[1720854374736,11.6,139.2,139.15,11.6]
[1720854375037,11.6,139.21,139.16,58.03692991]
[1720854375336,11.6,139.21,139.16,56.6]
[1720854376133,16.5857,139.24,139.17,11.6]
[1720854376134,11.6,139.22,139.17,11.6]
[1720854376338,11.6,139.22,139.17,13.03677193]
[1720854377338,11.6,139.22,139.16,67.3174]
[1720854377537,11.6,139.22,139.16,78.9174]
[1720854377729,11.6,139.22,139.17,1.43686952]
[1720854378037,11.6,139.22,139.16,78.9174]
[1720854378233,11.6,139.21,139.16,78.9174]
[1720854378546,11.6,139.2,139.16,67.3174]
[1720854378726,11.6,139.2,139.16,68.75435402]
[1720854379736,11.6,139.2,139.16,67.3174]
[1720854380734,11.6,139.2,139.16,22.3174]
[1720854383149,11.6,139.19,139.11,22.3174]
[1720854383320,11.6,139.18,139.13,11.6]
[1720854384116,11.6,139.19,139.14,11.6]
[1720854385740,11.6,139.19,139.13,1.43725791]
[1720854385927,11.6,139.19,139.14,11.6]
[1720854388549,11.6,139.19,139.15,1.43725847]
[1720854389222,11.6,139.19,139.14,11.6]
[1720854389645,11.6,139.19,139.15,1.43710665]
[1720854390947,10.0,139.22,139.15,13.03710665]
[1720854391127,31.6,139.21,139.16,13.03699852]
[1720854391325,31.6,139.21,139.16,11.6]
[1720854391722,11.6,139.2,139.15,11.6]
[1720854394145,11.6,139.19,139.13,1.43700528]
[1720854394327,11.6,139.18,139.13,13.03700528]
[1720854395046,11.6,139.19,139.14,11.6]
[1720854398958,11.6,139.19,139.13,1.43700528]
[1720854399130,11.6,139.19,139.13,13.03700528]
[1720854400541,11.6,139.19,139.14,11.6]
[1720854403538,21.6,139.2,139.14,11.6]
[1720854404553,11.6,139.19,139.14,11.6]
[1720854407451,22.86122773,139.21,139.14,11.6]
[1720854407664,11.6,139.2,139.14,11.6]
[1720854408756,31.6,139.21,139.15,33.5722]
[1720854409132,11.6,139.2,139.15,33.5722]
[1720854411156,20.0,139.21,139.16,1.43707249]
[1720854411339,31.6,139.21,139.16,1.43707249]
[1720854411533,31.6,139.21,139.16,13.03707249]
[1720854412559,11.6,139.21,139.16,13.03707249]
[1720854416846,10.0,139.24,139.16,13.03707249]
[1720854416847,10.0,139.24,139.17,11.6]
[1720854417049,11.6,139.22,139.18,1.43680276]
[1720854417270,20.0,139.23,139.17,13.03680276]
[1720854417443,11.6,139.22,139.17,13.03680276]
[1720854417639,20.0,139.23,139.18,1.43680382]
[1720854417957,11.6,139.22,139.17,11.6]
[1720854419438,11.6,139.21,139.16,11.6]
[1720854419669,11.6,139.21,139.17,1.43680596]
[1720854419873,11.6,139.22,139.18,1.43675889]
[1720854420039,20.0,139.23,139.18,1.43675889]
[1720854420235,11.6,139.22,139.18,1.43675889]
[1720854421546,11.6,139.23,139.18,13.03675889]
[1720854421939,10.0,139.28,139.2,11.6]
[1720854422140,10.0,139.28,139.21,1.43643643]
[1720854422566,11.6,139.26,139.21,58.03643643]
[1720854424448,11.6,139.26,139.21,45.0]
[1720854424647,11.6,139.25,139.2,45.0]
[1720854424869,11.6,139.25,139.2,56.6]
[1720854425451,11.6,139.25,139.2,45.0]
[1720854425648,11.6,139.24,139.19,21.9722]
[1720854426151,11.6,139.24,139.19,23.40879164]
[1720854429882,11.6,139.23,139.19,21.9722]
[1720854430177,10.0,139.26,139.19,21.9722]
[1720854430362,10.0,139.26,139.19,23.40887558]
[1720854430562,10.0,139.26,139.19,35.00887558]
[1720854430766,10.0,139.26,139.19,33.5722]
[1720854433685,11.6,139.25,139.2,13.03667469]
[1720854434177,10.0,139.28,139.21,1.43658154]
[1720854434501,11.6,139.26,139.21,13.03658154]
[1720854434863,10.0,139.26,139.19,21.9722]
[1720854435083,11.6,139.24,139.19,33.5722]
[1720854435470,11.6,139.24,139.19,21.9722]
[1720854435674,11.6,139.24,139.19,23.40880985]
[1720854437584,11.6,139.24,139.19,35.00880985]
[1720854437761,11.6,139.24,139.2,1.43655736]
[1720854441881,11.6,139.24,139.19,33.5722]
[1720854442396,11.6,139.22,139.11,21.9035]
[1720854442589,11.6,139.21,139.15,11.6]
[1720854442904,11.6,139.2,139.15,11.6]
[1720854443780,11.6,139.2,139.16,45.0]
[1720854447504,11.6,139.21,139.16,56.6]
[1720854447890,11.6,139.22,139.17,13.03685102]
[1720854448089,10.0,139.26,139.18,13.03666501]
[1720854448398,11.6,139.24,139.19,11.6]
[1720854448577,16.3511,139.27,139.2,1.43652933]
[1720854448782,11.6,139.25,139.21,1.43647889]
[1720854450602,12.8520558,139.28,139.21,46.43647889]
[1720854450788,11.6,139.26,139.21,58.03647889]
[1720854451107,11.6,139.26,139.21,56.6]
[1720854451679,12.8520558,139.28,139.21,56.6]
[1720854451902,11.6,139.26,139.21,56.6]
[1720854452202,11.6,139.26,139.21,45.0]
[1720854452811,11.6,139.26,139.21,46.43637638]
[1720854453477,11.6,139.26,139.21,45.0]
[1720854453808,11.6,139.25,139.21,45.0]
[1720854454511,11.6,139.25,139.22,1.4363751]
[1720854455803,11.6,139.26,139.22,1.4363751]
[1720854456781,2.96377562,139.29,139.22,1.4363751]
[1720854456983,11.6,139.26,139.22,1.4363751]
[1720854459502,11.6,139.26,139.21,56.6]
[1720854460111,11.6,139.26,139.21,45.0]
[1720854460485,10.0,139.28,139.21,45.0]
[1720854460486,11.6,139.25,139.21,45.0]
[1720854460906,11.6,139.25,139.2,56.6]
[1720854461207,11.6,139.25,139.21,1.43637359]
[1720854463811,10.0,139.28,139.21,1.43637359]
[1720854463996,11.6,139.25,139.21,1.43637359]
[1720854465611,11.6,139.24,139.21,1.43637359]
[1720854465818,10.0,139.28,139.21,1.43637359]
[1720854466111,11.6,139.26,139.21,1.43637359]
[1720854466616,11.6,139.26,139.21,13.03637359]
[1720854471409,11.6,139.27,139.21,13.03637359]
[1720854473221,11.6,139.28,139.23,21.6471]
[1720854473420,11.6,139.28,139.24,1.43617061]
[1720854474396,20.0,139.29,139.24,1.43617061]
[1720854474597,31.6,139.29,139.24,1.43617061]
[1720854475022,11.6,139.28,139.24,1.43617061]
[1720854478533,10.0,139.32,139.24,46.43617061]
[1720854478718,10.0,139.32,139.24,58.03617061]
[1720854478921,11.6,139.29,139.25,1.43604119]
[1720854482536,10.0,139.32,139.26,21.6471]
[1720854482754,11.6,139.3,139.26,21.6471]
[1720854482917,20.0,139.31,139.26,21.6471]
[1720854483231,11.6,139.28,139.26,21.6471]
[1720854483535,11.6,139.27,139.24,45.0]
[1720854484117,11.6,139.27,139.23,15.0657]
[1720854484938,11.6,139.25,139.23,15.0657]
[1720854488519,11.6,139.25,139.22,6.5814]
[1720854488722,11.6,139.24,139.2,15.935]
[1720854494945,11.6,139.25,139.21,1.43648921]
[1720854495153,10.0,139.28,139.21,58.03648921]
[1720854495459,11.6,139.28,139.22,11.6]
[1720854495648,11.6,139.28,139.21,45.0]
[1720854495847,11.6,139.27,139.22,13.0363127]
[1720854497246,11.6,139.27,139.22,11.6]
[1720854499455,11.6,139.27,139.23,1.43622646]
[1720854499652,11.6,139.28,139.24,1.43620692]
[1720854500238,22.85803962,139.31,139.24,1.43620692]
[1720854500445,11.6,139.29,139.24,46.43620692]
[1720854501140,11.6,139.29,139.24,80.11120692]
[1720854501338,11.6,139.29,139.25,1.43602219]
[1720854501638,11.6,139.27,139.24,22.075]
[1720854502438,11.6,139.26,139.24,22.075]
[1720854505348,11.6,139.28,139.24,22.075]
[1720854505543,11.6,139.28,139.25,1.43630036]
[1720854505775,22.85803962,139.31,139.25,45.0]
[1720854505943,11.6,139.29,139.25,45.0]
[1720854506467,11.6,139.28,139.25,45.0]
[1720854506640,11.6,139.28,139.24,22.075]
[1720854506841,11.6,139.28,139.24,23.51113855]
[1720854507449,11.6,139.28,139.24,23.51115686]
[1720854507866,11.6,139.28,139.24,22.075]
[1720854509344,11.6,139.28,139.24,23.51113952]
[1720854509566,11.6,139.29,139.24,23.51113952]
[1720854509753,20.0,139.31,139.24,23.51113952]
[1720854509754,11.6,139.28,139.24,23.51113952]
[1720854509954,11.6,139.28,139.24,22.075]
[1720854511569,11.6,139.28,139.25,45.0]
[1720854511873,11.6,139.29,139.24,22.075]
[1720854512478,11.6,139.29,139.25,1.43610518]
[1720854513356,11.6,139.29,139.24,22.075]
[1720854514753,11.6,139.28,139.24,22.075]
[1720854518084,11.6,139.27,139.24,22.075]
[1720854518575,10.0,139.3,139.24,22.075]
[1720854518874,11.6,139.27,139.24,22.075]
[1720854520550,11.6,139.28,139.24,22.075]
[1720854525362,11.6,139.28,139.24,23.51115836]
[1720854525769,11.6,139.28,139.24,22.075]
[1720854531181,11.6,139.27,139.24,22.075]
[1720854532688,11.6,139.28,139.24,22.075]
[1720854533496,20.0,139.31,139.24,23.51113698]
[1720854533659,20.0,139.31,139.25,56.6]
[1720854533860,31.6,139.31,139.26,1.43589101]
[1720854534080,31.6,139.31,139.27,1.43588972]
[1720854534291,11.6,139.3,139.25,56.6]
[1720854534474,11.6,139.3,139.26,1.43589473]
[1720854534680,11.6,139.29,139.26,1.43589473]
[1720854535669,11.6,139.3,139.27,1.43589461]
[1720854536475,11.6,139.31,139.27,1.43589461]
[1720854538094,12.98045657,139.34,139.27,1.43589461]
[1720854538269,11.6,139.31,139.27,1.43589461]
[1720854538665,11.6,139.32,139.27,13.03589461]
[1720854538880,11.6,139.32,139.28,1.43578415]
[1720854540174,11.6,139.31,139.28,1.43578415]
[1720854540879,11.6,139.31,139.27,1.43578477]
[1720854542894,10.0,139.36,139.28,34.0318]
[1720854543196,11.6,139.33,139.29,1.43554672]
[1720854543407,11.6,139.33,139.29,1.43556621]
[1720854543695,11.6,139.33,139.28,34.0318]
[1720854543989,11.6,139.33,139.29,1.43564883]
[1720854544565,11.6,139.33,139.28,34.0318]
[1720854545577,11.6,139.32,139.28,22.4318]
[1720854546802,11.6,139.32,139.28,23.86738015]
[1720854546984,11.6,139.31,139.28,22.4318]
[1720854550313,20.0,139.35,139.28,23.86754473]
[1720854550598,11.6,139.32,139.28,23.86754473]
[1720854550793,11.6,139.32,139.28,22.4318]
[1720854551282,11.6,139.32,139.28,23.86751481]
[1720854553603,11.6,139.32,139.28,35.46751481]
[1720854553804,11.6,139.32,139.29,1.4356144]
[1720854554005,11.6,139.33,139.29,1.4356144]
[1720854555519,11.6,139.33,139.28,34.0318]
[1720854555709,11.6,139.32,139.28,22.4318]
[1720854556090,10.0,139.34,139.28,22.4318]
[1720854556295,20.0,139.35,139.28,22.4318]
[1720854556493,11.6,139.32,139.28,22.4318]
[1720854556711,20.0,139.35,139.29,1.43563886]
[1720854556910,11.6,139.32,139.29,1.43563886]
[1720854557198,11.6,139.33,139.3,1.43555029]
[1720854559206,20.0,139.35,139.3,1.43555029]
[1720854559528,11.6,139.35,139.3,13.03555029]
[1720854562399,11.6,139.34,139.3,1.43555029]
[1720854565110,10.0,139.38,139.3,1.43555029]
[1720854565410,11.6,139.34,139.3,1.43555029]
[1720854565719,11.6,139.35,139.3,1.43555029]
[1720854566117,11.6,139.35,139.3,13.03555029]
[1720854566323,11.6,139.35,139.31,45.0]
[1720854566628,11.6,139.35,139.32,1.43533161]
[1720854568797,11.6,139.35,139.31,45.0]
[1720854569412,11.6,139.35,139.3,45.0]
[1720854569622,11.6,139.34,139.3,45.0]
[1720854572039,11.6,139.35,139.3,45.0]
[1720854572530,11.6,139.35,139.31,1.43534386]
[1720854574603,20.0,139.37,139.31,1.43534386]
[1720854574825,11.6,139.35,139.31,1.43534386]
[1720854575610,13.50021334,139.38,139.31,1.43534386]
[1720854575814,11.6,139.36,139.31,1.43534386]
[1720854577540,11.6,139.4,139.35,11.6]
[1720854577912,11.6,139.4,139.34,11.6]
[1720854578111,11.6,139.4,139.35,45.0]
[1720854578441,11.6,139.39,139.35,45.0]
[1720854578811,11.6,139.39,139.34,45.0]
[1720854579241,11.6,139.39,139.34,56.6]
[1720854579933,11.6,139.39,139.34,45.0]
[1720854580136,11.6,139.38,139.33,56.6]
[1720854581335,11.6,139.38,139.34,1.43506992]
[1720854581632,11.6,139.39,139.34,1.43506992]
[1720854583630,10.0,139.42,139.34,13.03506992]
[1720854583829,11.6,139.39,139.34,13.03506992]
[1720854585446,10.0,139.42,139.34,13.03506992]
[1720854585741,11.6,139.4,139.34,13.03506992]
[1720854586312,11.6,139.4,139.35,45.0]
[1720854586519,11.6,139.4,139.36,1.43493362]
[1720854587439,11.6,139.4,139.35,56.6]
[1720854588242,11.6,139.4,139.35,45.0]
[1720854589240,11.6,139.4,139.36,1.43493811]
[1720854591347,11.6,139.4,139.35,56.6]
[1720854591517,11.6,139.4,139.35,45.0]
[1720854595925,11.6,139.4,139.36,1.43492752]
[1720854596332,11.6,139.4,139.35,45.0]
[1720854596549,11.6,139.4,139.34,11.6]
[1720854596949,11.6,139.39,139.34,11.6]
[1720854598349,11.6,139.39,139.35,1.4349313]
[1720854598556,11.6,139.4,139.35,1.4349313]
[1720854598737,11.6,139.4,139.36,1.43491615]
[1720854599256,11.6,139.4,139.34,11.6]
[1720854600737,11.6,139.4,139.35,1.43493153]
[1720854601460,11.6,139.4,139.36,1.43489925]
[1720854601758,11.6,139.4,139.34,11.6]
[1720854602757,11.6,139.39,139.34,11.6]
[1720854605172,11.6,139.39,139.35,1.43491095]
[1720854605351,11.6,139.39,139.36,1.43491119]
[1720854605662,11.6,139.4,139.36,1.43491119]
[1720854606964,10.0,139.42,139.36,1.43491119]
[1720854607163,11.6,139.4,139.36,1.43491119]
[1720854608063,11.6,139.4,139.35,11.6]
[1720854608541,10.0,139.42,139.34,11.6]
[1720854608542,11.6,139.39,139.34,11.6]
[1720854610064,11.6,139.39,139.32,22.7572]
[1720854610364,11.6,139.39,139.34,11.6]
[1720854610659,10.0,139.42,139.35,1.43498118]
[1720854610867,11.6,139.4,139.36,1.43491842]
[1720854611562,11.6,139.4,139.34,11.6]
[1720854612564,11.6,139.39,139.34,11.6]
[1720854614640,11.6,139.4,139.34,11.6]
[1720854617540,11.6,139.39,139.34,11.6]
[1720854618358,11.6,139.39,139.35,1.43492702]
[1720854618553,10.0,139.42,139.36,1.434926]
[1720854618867,11.6,139.4,139.36,1.434926]
[1720854619650,10.0,139.42,139.35,1.43492621]
[1720854619937,11.6,139.4,139.36,1.4349263]
[1720854621352,20.0,139.41,139.36,23.9140263]
[1720854621546,31.6,139.41,139.36,35.5140263]
[1720854621746,31.6,139.41,139.37,1.43484161]
[1720854629550,11.6,139.41,139.37,1.43484161]
[1720854630865,12.90718358,139.44,139.37,1.43484161]
[1720854631069,20.0,139.43,139.36,34.0791]
[1720854631270,11.6,139.41,139.36,34.0791]
[1720854633285,11.6,139.41,139.37,1.43476002]
[1720854636373,11.6,139.42,139.37,1.43476002]
[1720854636565,20.0,139.41,139.37,1.43476002]
[1720854636768,20.0,139.41,139.36,34.0791]
[1720854636769,31.6,139.41,139.36,22.4791]
[1720854640569,11.6,139.39,139.36,22.4791]
[1720854643466,11.6,139.4,139.36,22.4791]
[1720854643764,11.6,139.4,139.36,23.91406909]
[1720854644867,11.6,139.4,139.36,22.4791]
[1720854645993,20.0,139.41,139.36,22.4791]
[1720854646301,23.40189616,139.46,139.39,11.6]
[1720854646461,10.0,139.46,139.4,1.43456095]
[1720854646662,11.6,139.43,139.4,1.43456095]
[1720854647468,11.6,139.43,139.39,1.43456117]
[1720854648590,11.6,139.44,139.4,1.43456234]
[1720854648789,10.0,139.46,139.4,1.43456234]
[1720854649094,11.6,139.45,139.4,13.03456234]
[1720854649865,10.0,139.48,139.4,11.6]
[1720854650179,11.6,139.45,139.4,11.6]
[1720854654289,11.6,139.46,139.41,11.6]
[1720854654505,20.0,139.47,139.41,11.6]
[1720854654891,11.6,139.46,139.41,11.6]
[1720854658878,11.6,139.46,139.42,1.434307]
[1720854659080,11.6,139.46,139.39,22.2388]
[1720854659081,11.6,139.46,139.41,11.6]
[1720854660799,11.6,139.44,139.39,33.8388]
[1720854665022,11.6,139.43,139.39,22.2388]
[1720854668422,11.6,139.44,139.39,33.8388]
[1720854670221,11.6,139.44,139.4,1.43441558]
[1720854670406,11.6,139.44,139.39,33.8388]
[1720854677104,11.6,139.44,139.4,1.43443461]
[1720854678912,20.0,139.47,139.4,1.43443461]
[1720854679125,11.6,139.44,139.4,1.43443461]
[1720854680116,20.0,139.47,139.4,11.6]
[1720854680316,2.83418113,139.49,139.39,22.2388]
[1720854680317,11.6,139.46,139.41,11.6]
[1720854681021,11.6,139.47,139.42,13.03418824]
[1720854681225,11.6,139.47,139.43,23.29144205]
[1720854681410,20.0,139.49,139.44,1.43410258]
[1720854681613,11.6,139.47,139.43,21.8573]
[1720854682418,20.0,139.49,139.43,21.8573]
[1720854682635,11.6,139.48,139.44,1.43409647]
[1720854683345,11.6,139.47,139.44,1.43409647]
[1720854684739,11.6,139.46,139.44,1.43409647]
[1720854685125,10.0,139.5,139.44,1.43409647]
[1720854685318,11.6,139.46,139.44,1.43409647]
[1720854685517,11.6,139.46,139.43,21.8573]
[1720854687746,11.6,139.46,139.41,11.6]
[1720854687747,15.6806,139.45,139.41,11.6]
[1720854688041,11.6,139.42,139.38,1.43454509]
[1720854688225,11.6,139.4,139.37,22.6748]
[1720854689240,11.6,139.4,139.38,1.43467105]
[1720854690534,66.4,139.44,139.38,1.43467105]
[1720854690535,11.6,139.41,139.38,1.43467105]
[1720854691244,11.6,139.41,139.37,22.6748]
[1720854692346,11.6,139.41,139.38,1.43453891]
[1720854692641,11.6,139.42,139.37,22.6748]
[1720854692961,11.6,139.41,139.37,22.6748]
[1720854693618,11.6,139.4,139.37,22.6748]
[1720854694940,11.6,139.4,139.38,1.43468381]
[1720854695758,11.6,139.41,139.38,1.43468381]
[1720854695938,11.6,139.41,139.37,22.6748]
[1720854696139,11.6,139.4,139.37,22.6748]
[1720854699251,11.6,139.4,139.38,1.43468471]
[1720854699857,11.6,139.4,139.37,22.6748]
[1720854700640,11.6,139.4,139.38,1.43468117]
[1720854701641,11.6,139.4,139.37,22.6748]
[1720854701844,11.6,139.4,139.38,1.43467782]
[1720854702649,8.47476466,139.45,139.38,1.43467782]
[1720854702850,11.6,139.4,139.38,1.43467782]
[1720854703261,8.47476466,139.45,139.37,22.6748]
[1720854703437,8.47476466,139.45,139.38,21.4345547]
[1720854703438,11.6,139.41,139.38,21.4345547]
[1720854705068,11.6,139.41,139.38,20.0]
[1720854705254,11.6,139.4,139.37,22.6748]
[1720854705451,8.47476466,139.45,139.37,22.6748]
[1720854705452,21.6,139.44,139.37,22.6748]
[1720854705652,18.47476466,139.44,139.37,22.6748]
[1720854705850,11.6,139.4,139.37,22.6748]
[1720854706442,8.47476466,139.44,139.38,1.43463791]
[1720854706650,11.6,139.41,139.38,1.43463791]
[1720854710954,11.6,139.41,139.37,22.6748]
[1720854713268,11.6,139.41,139.38,1.43459672]
[1720854713651,11.6,139.41,139.37,22.6748]
[1720854713856,11.6,139.41,139.38,1.43459958]
[1720854714657,11.6,139.41,139.37,22.6748]
[1720854716580,11.6,139.41,139.38,1.43456438]
[1720854717862,8.47476466,139.44,139.38,1.43456438]
[1720854718060,11.6,139.42,139.38,1.43456438]
[1720854720676,11.6,139.41,139.38,1.43456438]
[1720854722862,11.6,139.41,139.37,22.6748]
[1720854723182,11.6,139.42,139.37,22.6748]
[1720854723376,11.6,139.41,139.37,22.6748]
[1720854723583,11.6,139.4,139.37,22.6748]
[1720854724091,11.6,139.39,139.37,22.6748]
[1720854724986,56.4,139.44,139.33,33.5786]
[1720854725297,11.6,139.39,139.34,13.03474727]
[1720854725963,11.6,139.39,139.34,11.6]
[1720854726164,11.6,139.39,139.35,1.43481733]
[1720854726364,11.6,139.39,139.36,1.43478609]
[1720854729173,8.47476466,139.43,139.37,21.9786]
[1720854729366,11.6,139.41,139.38,1.43454668]
[1720854729577,11.6,139.42,139.38,1.43454668]
[1720854730982,11.6,139.41,139.38,1.43454668]
[1720854731192,11.6,139.41,139.37,21.9786]
[1720854732481,11.6,139.4,139.37,21.9786]
[1720854734085,11.6,139.4,139.38,1.43469652]
[1720854735595,8.47476466,139.43,139.38,1.43469652]
[1720854735775,8.47476466,139.43,139.37,21.9786]
[1720854736087,8.47476466,139.43,139.38,1.43465116]
[1720854736490,8.47476466,139.43,139.37,21.9786]
[1720854737168,8.47476466,139.43,139.38,1.43464039]
[1720854737375,11.6,139.4,139.38,1.43464039]
[1720854737569,11.6,139.41,139.38,1.43464039]
[1720854738588,8.47476466,139.43,139.38,1.43464039]
[1720854738792,11.6,139.41,139.38,1.43464039]
[1720854739392,11.6,139.41,139.37,21.9786]
[1720854739605,11.6,139.4,139.37,21.9786]
[1720854741218,8.47476466,139.43,139.37,21.9786]
[1720854741391,11.6,139.4,139.37,21.9786]
[1720854746620,11.6,139.39,139.37,21.9786]
[1720854749204,11.6,139.38,139.33,22.1136]
[1720854749501,11.6,139.38,139.34,20.0]
[1720854749707,11.6,139.38,139.34,21.4349403]
[1720854749914,11.6,139.39,139.34,33.0349403]
[1720854750115,8.47476466,139.43,139.34,33.0349403]
[1720854750419,11.6,139.39,139.34,33.0349403]
[1720854751316,11.6,139.39,139.34,21.4349403]
[1720854751515,11.6,139.39,139.34,33.0349403]
[1720854754027,11.6,139.39,139.35,45.0]
[1720854754204,8.47476466,139.43,139.36,1.43467401]
[1720854754530,11.6,139.41,139.37,15.5197]
[1720854754699,11.6,139.41,139.38,1.43460732]
[1720854755335,11.6,139.41,139.37,15.5197]
[1720854755699,11.6,139.4,139.37,15.5197]
[1720854757022,11.6,139.39,139.37,15.5197]
[1720854759407,11.6,139.39,139.34,35.5197]
[1720854759603,21.6,139.44,139.34,35.5197]
[1720854759604,11.6,139.38,139.34,35.5197]
[1720854763227,11.6,139.36,139.34,15.5197]
[1720854763418,11.6,139.37,139.34,15.5197]
[1720854763927,11.6,139.37,139.35,1.4350272]
[1720854766950,11.6,139.37,139.34,15.5197]
[1720854767811,11.6,139.37,139.35,1.43502845]
[1720854769833,11.6,139.36,139.34,15.5197]
[1720854772106,11.6,139.36,139.34,16.95477332]
[1720854772729,11.6,139.36,139.34,15.5197]
[1720854773132,10.0,139.4,139.31,15.7823]
[1720854773320,11.6,139.34,139.31,15.7823]
[1720854774808,11.6,139.35,139.31,15.7823]
[1720854775009,11.6,139.35,139.32,1.43519798]
[1720854775235,11.6,139.35,139.33,1.43519153]
[1720854775421,24.47406466,139.4,139.33,1.43519153]
[1720854775623,20.0,139.39,139.33,1.43519153]
[1720854775931,11.6,139.36,139.33,1.43519153]
[1720854776131,20.0,139.39,139.33,1.43519153]
[1720854776328,11.6,139.36,139.33,1.43519153]
[1720854776924,11.6,139.36,139.31,27.3823]
[1720854777636,11.6,139.35,139.31,15.7823]
[1720854778022,11.6,139.35,139.32,1.43520097]
[1720854778220,11.6,139.35,139.33,1.43519406]
[1720854779147,11.6,139.35,139.32,1.43520245]
[1720854779451,11.6,139.35,139.33,1.43520259]
[1720854780348,11.6,139.35,139.32,1.43520259]
[1720854780723,11.6,139.35,139.31,15.7823]
[1720854784041,11.6,139.34,139.31,15.7823]
[1720854785849,11.6,139.34,139.32,1.43531718]
[1720854786064,11.6,139.34,139.31,15.7823]
[1720854786552,11.6,139.33,139.31,15.7823]
[1720854788131,11.6,139.33,139.32,1.43537046]
[1720854788333,11.6,139.34,139.32,1.43537046]
[1720854789664,11.6,139.34,139.3,1.43534255]
[1720854789665,26.8004,139.34,139.3,1.43534255]
[1720854789833,11.6,139.31,139.26,21.9097]
[1720854790035,15.2004,139.34,139.26,21.9097]
[1720854790036,11.6,139.3,139.26,21.9097]
[1720854790645,11.6,139.29,139.26,21.9097]
[1720854791557,11.6,139.29,139.27,1.43582544]
[1720854792653,11.6,139.3,139.27,1.43582544]
[1720854794259,56.4,139.36,139.27,1.43582544]
[1720854794444,11.6,139.32,139.27,1.43582544]
[1720854794637,11.6,139.32,139.27,13.03582544]
[1720854796248,11.6,139.32,139.27,11.6]
[1720854796464,11.6,139.32,139.28,1.43550078]
[1720854796656,20.0,139.35,139.28,1.43550078]
[1720854796657,11.6,139.31,139.28,1.43550078]
[1720854798358,11.6,139.32,139.28,1.43550078]
[1720854798859,15.2004,139.37,139.28,1.43550078]
[1720854799063,20.0,139.36,139.3,21.9097]
[1720854799234,11.6,139.34,139.31,1.43525716]
[1720854799436,11.6,139.35,139.31,1.43525716]
[1720854800041,11.6,139.35,139.3,33.5097]
[1720854800658,11.6,139.35,139.3,21.9097]
[1720854800976,11.6,139.34,139.3,21.9097]
[1720854802442,18.47476466,139.4,139.31,1.43530195]
[1720854802667,11.6,139.34,139.31,1.43530195]
[1720854802872,8.47476466,139.4,139.31,13.03530195]
[1720854803152,8.47476466,139.4,139.33,11.6]
[1720854803351,11.6,139.39,139.35,21.9097]
[1720854803565,10.0,139.42,139.34,1.43484792]
[1720854803771,11.6,139.36,139.34,1.43484792]
[1720854804768,11.6,139.36,139.33,1.43509593]
[1720854811162,11.6,139.36,139.33,1.43511343]
[1720854811360,11.6,139.35,139.32,21.9097]
[1720854812175,11.6,139.35,139.33,1.43529536]
[1720854813956,10.0,139.4,139.33,1.43529536]